Cogmind - Beta 13 @@@ ROGUE MODE // 2024.04.06 @ 01:35:53 Player: Spuddz Result: Self-destructed Performance ------------- Evolutions (1) 500 Regions Visited (3) 600 Robots Destroyed (33) 165 Value Destroyed (670) 670 Prototype IDs (0) 0 Alien Tech Used (0) 0 Bonus (0) 0 TOTAL SCORE: 1935 Bonus ------- None Cogmind --------- Core Integrity 371/400 Matter 86/300 Energy 250/250 System Corruption 0% Temperature Cool (9) Movement Treading (160) Location -9/Materials Parts ------- > --- POWER (1) -------- Ion Engine > --- PROPULSION (4) --- Light Treads Light Treads Light Treads Light Treads > --- UTILITY (2) ------ High-capacity Storage Unit Light Armor Plating > --- WEAPON (2) ------- Grenade Launcher Grenade Launcher > --- INVENTORY (20) --- Ion Engine Light Treads Light Treads Light Treads Light Treads Light Treads Medium Laser Light Assault Rifle Light Assault Rifle Grenade Launcher Mining Claw Peak State ------------ > --- POWER ------------ Ion Engine > --- PROPULSION ------- Light Treads Light Treads Light Treads Light Treads > --- UTILITY ---------- High-capacity Storage Unit Light Armor Plating > --- WEAPON ----------- Light Assault Rifle Light Assault Rifle > --- INVENTORY -------- Ion Engine Light Treads Light Treads Light Treads Light Treads Light Treads Light Treads Medium Laser Grenade Launcher Grenade Launcher Grenade Launcher Mining Claw [Rating: 10] Favorites ----------- Power Ion Engine Engine Ion Engine Propulsion Light Treads Treads Light Treads Utility High-capacity Storage Unit Storage High-capacity Storage Unit Protection Light Armor Plating Weapon Light Assault Rifle Energy Gun Medium Laser Ballistic Gun Light Assault Rifle Launcher Grenade Launcher Build | -11 -10 -10 -9 ------- Run | Yrd Mat Min Mat Slots Evolved 2 | . . . 2 Power . | . . . . Propulsion 2 | . . . 2 Utility . | . . . . Weapon . | . . . . Parts Attached 23 | 6 6 2 9 Power 2 | 1 . . 1 Engine 2 | 1 . . 1 Core . | . . . . Reactor . | . . . . Propulsion 5 | 2 . . 3 Treads 5 | 2 . . 3 Leg . | . . . . Wheel . | . . . . Hover . | . . . . Flight . | . . . . Utility 4 | 1 2 . 1 Device . | . . . . Storage 3 | 1 2 . . Processor . | . . . . Hackware . | . . . . Protection 1 | . . . 1 Artifact . | . . . . Weapon 12 | 2 4 2 4 Energy Gun 1 | 1 . . . Energy Cannon . | . . . . Ballistic Gun 5 | 1 2 . 2 Ballistic Cannon . | . . . . Launcher 6 | . 2 2 2 Special Weapon . | . . . . Impact Weapon . | . . . . Slashing Weapon . | . . . . Piercing Weapon . | . . . . Special Melee Weapon . | . . . . Unidentified Prototypes . | . . . . Parts Lost . | . . . . Power . | . . . . Propulsion . | . . . . Utility . | . . . . Weapon . | . . . . Highest Loss Streak . | . . . . To Critical Strikes . | . . . . Average Slot Usage (%) 84 | . 85 85 80 Engine 13 | . 14 14 10 Treads 28 | . 28 28 31 Storage 13 | . 14 14 11 Energy Gun 3 | . 5 . . Ballistic Gun 14 | . 22 . 12 Launcher 8 | . . 27 9 Naked Turns . | . . . . Heaviest Build 51 | 13 47 51 51 Greatest Support 80 | 40 40 40 80 Greatest Overweight (x) 1 | . 1 1 1 Average Overweight (x) . | . . 1 . Largest Inventory Capacity 20 | 8 20 20 20 Average Capacity 17 | 6 16 20 20 Most Carried 16 | 1 14 14 16 Average Carried 10 | . 9 14 12 Final Capacity 20 | 8 20 20 20 Final Carried 14 | 1 14 14 11 Class Distribution -------------------- 100% | Mutant Dominant Class ---------------- Mutant | -10/Materials Mutant | -10/Mines Mutant | -9/Materials Resources | -11 -10 -10 -9 ----------- Run | Yrd Mat Min Mat Matter Collected 480 | 260 139 28 53 Remotely . | . . . . Salvage Created 645 | . 432 138 75 Parts 65 | . 44 11 10 Haulers Intercepted 1 | . 1 . . Recyclers Shooed 1 | . 1 . . Parts Field Recycled . | . . . . Retrieved Matter . | . . . . Parts Self-Destructed . | . . . . Prevented . | . . . . Kills | -11 -10 -10 -9 ------- Run | Yrd Mat Min Mat Combat Hostiles Destroyed 26 | . 15 7 4 Guns 11 | . 10 . 1 AOE 15 | . 5 7 3 Classes Destroyed 7 | . 6 . 1 Tunneler 1 | . 1 . . Hauler 1 | . 1 . . Operator 2 | . 2 . . Watcher 3 | . 3 . . Swarmer 15 | . 9 3 3 Grunt 10 | . 6 4 . Sentry 1 | . . . 1 Best Kill Streak 5 | . 5 3 3 Combat Bots Only 3 | . 3 3 3 Max Kills in Single Turn 3 | . 3 3 3 Gunslinging . | . . . . Exploded 3 | . 3 3 3 Melee . | . . . . Uniques/NPCs Destroyed . | . . . . Combat | -11 -10 -10 -9 -------- Run | Yrd Mat Min Mat Hostile Shots Fired 91 | . 57 7 27 Missed 27 | . 20 . 7 Damage Taken 745 | . 381 115 249 Core 159 | . 117 13 29 Absorbed by Shields . | . . . . Core Remaining (%) 74 | 100 . 48 . Volleys Fired 69 | . 55 6 8 Largest 2 | . 2 2 2 Hottest 70 | . 70 60 60 Shots Fired 125 | . 97 12 16 Gun 108 | . 94 . 14 Cannon . | . . . . Launcher 17 | . 3 12 2 Special . | . . . . Kinetic 94 | . 80 . 14 Thermal 14 | . 14 . . Explosive 17 | . 3 12 2 Electromagnetic . | . . . . Robot Hit Streak 12 | . 9 7 12 Robot Miss Streak 6 | . 6 1 1 Penetration Max . | . . . . Secondary Targets 1 | . 1 . . Max Gunslinging Chain 1 | . 1 . . Shots Hit Robots 78 | . 57 8 13 Core Hits 57 | . 40 11 6 Critical Kills . | . . . . Critical Parts Destroyed 1 | . 1 . . Critical Strikes 1 | . 1 . . Destroy 1 | . 1 . . Melee Attacks . | . . . . Impact . | . . . . Slashing . | . . . . Piercing . | . . . . Sneak Attacks . | . . . . Combat Hostiles . | . . . . Follow-up Attacks . | . . . . Damage Inflicted 1684 | . 934 505 245 Guns 629 | . 533 . 96 Cannons . | . . . . Explosions 1055 | . 401 505 149 Melee . | . . . . Ramming . | . . . . Kinetic 541 | . 445 . 96 Thermal 88 | . 88 . . Explosive 1055 | . 401 505 149 Electromagnetic . | . . . . Impact . | . . . . Slashing . | . . . . Piercing . | . . . . Highest Corruption . | . . . . Average Corruption . | . . . . Corruption Purged . | . . . . Corruption Blocked . | . . . . Overload Shots . | . . . . Overflow Damage 20 | . 8 . 12 Projectiles . | . . . . Explosions 20 | . 8 . 12 Melee . | . . . . Knockbacks . | . . . . Impact . | . . . . Kinetic . | . . . . Secondary . | . . . . Self-Inflicted Damage 40 | . 27 13 . Shots 2 | . 1 1 . Rammed . | . . . . Targets Rammed . | . . . . Kicked . | . . . . Crushed . | . . . . Highest Temperature 70 | . 70 27 9 Average Temperature 17 | . 18 17 6 Received Heat Transfer 252 | . 120 60 72 Siege Activations . | . . . . Robots Corrupted . | . . . . Combat Hostiles . | . . . . Parts Fried . | . . . . Impact Corruptions . | . . . . Robots Melted . | . . . . Combat Hostiles . | . . . . Parts Melted . | . . . . Heat Transferred 259 | . 259 . . Parts Sabotaged . | . . . . Parts Stolen . | . . . . Parts Stripped . | . . . . Power Chain Reactions . | . . . . Alert | -11 -10 -10 -9 ------- Run | Yrd Mat Min Mat Peak Influence 336 | . 336 236 224 Initial 75 | . . 75 41 Average 140 | . 158 151 80 Maximum Alert Level 1 | . 1 1 1 Low Security (%) 85 | 100 83 79 98 Level 1 14 | . 16 20 1 Level 2 . | . . . . Level 3 . | . . . . Level 4 . | . . . . Level 5 . | . . . . High Security . | . . . . Max Security . | . . . . Squads Dispatched 3 | . 3 . . Investigation 1 | . 1 . . Extermination . | . . . . Reinforcement 2 | . 2 . . Assault . | . . . . Garrison . | . . . . Intercept . | . . . . Searches Triggered . | . . . . Construction Impeded . | . . . . Haulers Reinforced . | . . . . Active Scanning Responses . | . . . . Cargo Convoy Interrupts . | . . . . Stealth | -11 -10 -10 -9 --------- Run | Yrd Mat Min Mat Distress Signals 2 | . 1 . 1 Communications Jammed . | . . . . Distress Signals . | . . . . Times Spotted 34 | . 24 4 6 Peak Tracking Total 5 | . 5 2 5 Tactical Retreats 1 | . . . 1 Traps | -11 -10 -10 -9 ------- Run | Yrd Mat Min Mat Traps Triggered 1 | . 1 . . Indirectly . | . . . . Trap Hack Attempts . | . . . . Triggered . | . . . . Disarmed . | . . . . Reprogrammed . | . . . . Reused . | . . . . Traps Extracted . | . . . . Installed . | . . . . Triggered . | . . . . Machines | -11 -10 -10 -9 ---------- Run | Yrd Mat Min Mat Machines Disabled 2 | . 2 . . Max in Single Turn 2 | . 2 . . Machines Repaired . | . . . . Machines Dismantled . | . . . . Machines Sabotaged . | . . . . Overloaded Fab Kills . | . . . . Hacking | -11 -10 -10 -9 --------- Run | Yrd Mat Min Mat Machines Accessed 1 | . . . 1 Terminals 1 | . . . 1 Fabricators . | . . . . Repair Stations . | . . . . Recycling Units . | . . . . Scanalyzers . | . . . . Garrison Access . | . . . . Total Hacks 1 | . . . 1 Successful . | . . . . Failed 1 | . . . 1 Catastrophic . | . . . . Database Lockouts . | . . . . Manual 2 | . . . 2 Terminals 1 | . . . 1 Fabricators . | . . . . Repair Stations . | . . . . Recycling Units . | . . . . Scanalyzers . | . . . . Garrison Access . | . . . . Terminal Hacks . | . . . . Fabricator Hacks . | . . . . Repair Station Hacks . | . . . . Recycling Unit Hacks . | . . . . Scanalyzer . | . . . . Garrison Access Hacks . | . . . . Unauthorized Hacks . | . . . . Terminals . | . . . . Fabricators . | . . . . Repair Stations . | . . . . Recycling Units . | . . . . Scanalyzers . | . . . . Garrison Access . | . . . . Data Cores Recovered . | . . . . Used . | . . . . Hacking Detections 1 | . . . 1 Full Trace Events . | . . . . Feedback Events . | . . . . Feedback Blocked . | . . . . Robot Schematics Acquired . | . . . . Robots Built . | . . . . Authchips . | . . . . Time . | . . . . Total Robot Build Rating . | . . . . Part Schematics Acquired . | . . . . Parts Built . | . . . . Authchips . | . . . . Time . | . . . . Total Part Build Rating . | . . . . Parts Repaired . | . . . . Time . | . . . . Parts Recycled . | . . . . Recycled Matter . | . . . . Retrieved Matter . | . . . . Retrieved Components . | . . . . Parts Scanalyzed . | . . . . Part Schematics Acquired . | . . . . Parts Damaged . | . . . . Bothacking | -11 -10 -10 -9 ------------ Run | Yrd Mat Min Mat Used RIF Installer . | . . . . Robots Hacked . | . . . . Non-combat . | . . . . Combat . | . . . . Robot Hacks Applied . | . . . . Relay Couplers Released . | . . . . Fabnet Peak Effective % . | . . . . Robots Rewired . | . . . . Allies Hacked . | . . . . Hacks Repelled . | . . . . Allies | -11 -10 -10 -9 -------- Run | Yrd Mat Min Mat Total Allies . | . . . . Largest Group . | . . . . Highest-Rated Group . | . . . . Highest-Rated Ally . | . . . . Total Orders . | . . . . Ally Attacks . | . . . . Total Damage . | . . . . Kills . | . . . . Allies Corrupted . | . . . . Allies Melted . | . . . . Intel | -11 -10 -10 -9 ------- Run | Yrd Mat Min Mat Robot Analysis Total . | . . . . Derelict Logs Recovered 2 | . . 2 . Drone Launches . | . . . . Drone Recoveries . | . . . . Exploration | -11 -10 -10 -9 ------------- Run | Yrd Mat Min Mat Turns Passed 1699 | 88 980 446 185 Spaces Moved 731 | 51 427 178 75 Core 2 | 2 . . . Treads 729 | 49 427 178 75 Legs . | . . . . Wheels . | . . . . Hover . | . . . . Flight . | . . . . Fastest Speed 50 | 50 160 240 160 Average Speed 199 | 155 189 240 193 Slowest Speed 240 | 160 240 240 240 Overloaded Moves . | . . . . Propulsion Burnouts . | . . . . Robots Hopped . | . . . . Cave-ins Triggered . | . . . . Exploration Rate (%) 38 | 4 83 55 11 Regions Visited 3 Branch Regions 1 Pre-discovered Areas 1 | . . 1 . Known Exits Taken 1 | . . 1 . Unknown Exits Taken 2 | 1 1 . . Scrap Searched 1 | . . 1 . Spaces Dug . | . . . . Terrain Destroyed 116 | . 19 90 7 Melee . | . . . . Projectile . | . . . . AOE 116 | . 19 90 7 Terrain Rammed . | . . . . Walls Destroyed . | . . . . Machines Disabled . | . . . . Actions | -11 -10 -10 -9 --------- Run | Yrd Mat Min Mat Total 858 | 57 515 185 101 Wait 16 | . 11 . 5 Move 728 | 50 426 177 75 Hop . | . . . . Pick Up 17 | 1 14 . 2 Fast Attach 8 | 6 2 . . Attach 5 | . . . 5 Detach . | . . . . Swap 10 | . 4 2 4 Drop 5 | . 3 . 2 Fire 69 | . 55 6 8 Melee . | . . . . Ram . | . . . . Kick . | . . . . Crush . | . . . . Escape Stasis . | . . . . Rewire . | . . . . Trap . | . . . . Miscellaneous . | . . . . Route ------- -11/Scrapyard -10/Materials (discovered 3 exits: *Mat x2 / [*Min]) -10/Mines (discovered 2 exits: *Mat x2) -9/Materials History --------- Turn | Location | Event 15 | -11/Scrapyard | Discovered new exit (range 14) 89 | -11/Scrapyard | Entered Materials 273 | -10/Materials | Discovered new exit (range 15) 312 | -10/Materials | Build established: Mutant 441 | -10/Materials | Discovered new exit (range 13) 810 | -10/Materials | Discovered new exit (range 16) 1069 | -10/Materials | Entered Mines 1363 | -10/Mines | Learned location of Mines (-9) 1374 | -10/Mines | Core integrity fell below 50% 1392 | -10/Mines | Identified exit to Materials 1492 | -10/Mines | Discovered exit to Materials (range 6) 1515 | -10/Mines | Entered Materials 1515 | -9/Materials | Evolved 2 slots: Propulsion x2 1700 | -9/Materials | Self-destructed Last Messages --------------- 01513_ Acquired 2 matter. 01514_ The unstable cave ceiling collapses. PARAMETERS=PROPULSION+2 LOCATION=MATERIALS GOAL=ESCAPE 01540_ T-07 Excavator is excavating. 01604_ Y-45 Defender destroyed. 01606_ Acquired 53 matter. 01607_ T-07 Excavator is excavating. 01611_ Acquired Lgt. Treads. 01611_ T-07 Excavator is excavating. 01617_ Acquired Lgt. Armor Plating. 01619_ Dropped Ion Engine. 01620_ T-07 Excavator is excavating. 01623_ Dropped Lgt. Treads. 01624_ T-07 Excavator is excavating. 01656_ W-16 Scout sends out distress signal. 01661_ Connecting with Terminal... 01697_ Destroyed Flight Unit. 01697_ S-10 Pest destroyed. Map ----- +----------------------------------------------------+ | ??????########?# #???????????????????????????? | | ???????????????# #???#######?????????????????? | | ???????????????# #???#"""""#????##+###???????? | | ???????????????# ! #####""T""#### ??????? | | ???????????????# ??????? | | ???????????????########## ??????? | | ????????????????????????# """ """ ????????? | | ????????????????????????# """"""???????????? | | ????????????????????????# """"" ????????? | | ????????????????????????# ??????? | | ????????????????????????# ??????? | | ????????????????????????# ??????? | | ????????????????????????# ??????? | | ????????????????????????# ######## ???????? | | ????????????????????????# #??????? ???????? | | ????????????????????????# #????????######????????? | | ????????????????????????# #??????????????????????? | | ????????????????????????# #??????????????????????? | | ????????????????????????# #??????????????????????? | | ????????????????????????# #??????????????????????? | | ????????????????????????# #??????????????????????? | | ????????????????????????# #??????????????????????? | | ????????????????????????# #??????????????????????? | | ????????????????????????# #??????????????????????? | | ????????????????????????# #??????????????????????? | | ????????????????????????#@#??????????????????????? | | ????????????????????????# ?????????????????????? | | ????????????????????????# ???????????????????? | | ????????????????????????# ?????????????????? | | ????????????????????????# ???????????????? | | ????????????????????????# ?????????????? | | ????????????????????????# [[ [#????????????? | | ????????????????????????# % #????????????? | | ????????????????????????#### =Y ###????????????? | | ???????????????????????????? ??????????????? | | ???????????????????????????? r r?????????????? | | ???????????????????????????? ###????????????? | | ????????????????????????????? #??????????????? | | ????????????????????????????? ????????????????? | | ?????????????????????????????#???????????????????? | | ?????????????????????????????????????????????????? | | ?????????????????????????????????????????????????? | | ?????????????????????????????????????????????????? | | ?????????????????????????????????????????????????? | | ?????????????????????????????????????????????????? | | ?????????????????????????????????????????????????? | | ?????????????????????????????????????????????????? | | ?????????????????????????????????????????????????? | | ?????????????????????????????????????????????????? | | ?????????????????????????????????????????????????? | +----------------------------------------------------+ Best States ------------- Heat Dissipation 28 Energy Generation 10 Energy Capacity 250 Matter Stores 300 Matter Capacity 300 Sight Range 16 Terrain Scan Density 10 Armor Coverage 150 Evasion (%) 40 Recoil Reduction 4 Item Schematics ----------------- None Robot Schematics ------------------ None Fabricated ------------ Nothing Alien Tech Used ----------------- None Achievements -------------- None Challenges ------------ None Game ------ Seed GravitonTiamatShielding Manual? 0 Play Time 00:12:20 Cumulative 9.5 hours Start 2024.04.06 @ 01:25:04 End 2024.04.06 @ 01:35:53 Sessions 1 Manual Loads 0 Difficulty Rogue Special Mode None Game No. 25 Rogue 25 Adventurer 0 Explorer 0 Win Type - Total 0 Types 0/0/0/0/0/0/0/0/0 Lore% 14 Gallery% 15 Achievement% 16 Wizard Run 0 Options --------- Layout 1 ASCII 0 Keyboard 0 Movement Mouse Keybinds 0 Fullscreen 2 Font 32/Terminus Map View 50x35 Zoom Use 0% Tactical HUD 1 Map Filters NONE Filters NONE Steam 1 RUN: b51ee82f-d4ab-44d2-bcaa-543c40aac5a4